bitfinex/quotes_ETHUSD_20260106
["timestamp","ask_amount","ask_price","bid_price","bid_amount"]
[1767729727183,4.89090905,3228.9,3228.1,1.04174769]
[1767729727384,0.814,3228.9,3228.2,1.04174769]
[1767729727986,3.91106146,3228.9,3228.2,1.04174769]
[1767729728688,0.002,3228.9,3228.2,3.0977015]
[1767729728992,0.002,3228.9,3228.3,1.04174769]
[1767729730799,0.002,3228.9,3228.5,1.04174769]
[1767729733094,0.002,3228.9,3228.6,1.04174769]
[1767729733392,0.002,3229.0,3228.5,3.51132681]
[1767729733579,0.97985556,3229.3,3228.5,3.48827322]
[1767729733781,0.002,3228.6,3228.5,3.48827322]
[1767729733990,0.002,3228.9,3228.5,3.48827322]
[1767729734290,0.97985556,3229.3,3228.3,3.09754145]
[1767729734460,0.97985556,3229.3,3228.2,1.04174769]
[1767729734663,0.97985556,3229.3,3228.3,3.0975426]
[1767729734865,0.97985556,3229.3,3227.8,3.09805733]
[1767729734866,0.97985556,3229.3,3227.8,3.91005348]
[1767729735062,0.97985556,3229.1,3227.9,1.04174769]
[1767729735312,0.97985556,3228.9,3227.9,1.04174769]
[1767729737191,0.97985556,3228.7,3227.9,4.13966204]
[1767729738098,0.47985556,3228.7,3227.9,4.13966204]
[1767729738477,0.47985556,3228.7,3227.9,1.04174769]
[1767729738671,0.47985556,3228.7,3227.7,1.04174769]
[1767729738889,0.66741073,3228.6,3227.8,4.13981625]
[1767729739088,3.09741365,3228.5,3227.8,1.04174769]
[1767729739297,3.09741365,3228.5,3227.8,4.13975868]
[1767729739912,6.1948273,3228.5,3227.8,1.04174769]
[1767729740076,6.1948273,3228.5,3227.4,3.09845592]
[1767729740077,0.78466982,3228.4,3227.5,1.04174769]
[1767729740580,0.78466982,3228.3,3227.5,1.04174769]
[1767729741199,0.78449819,3228.1,3227.2,1.04174769]
[1767729741394,6.195403,3228.2,3227.2,1.04174769]
[1767729741395,3.0977015,3228.2,3227.2,1.04174769]
[1767729741601,1.45190892,3228.6,3227.6,1.04174769]
[1767729741602,3.09738409,3228.6,3227.6,1.04174769]
[1767729741802,3.90938409,3228.6,3227.8,1.04174769]
[1767729742206,3.09741365,3228.5,3227.8,1.04174769]
[1767729742418,6.1948273,3228.5,3227.8,1.04174769]
[1767729742572,0.812,3228.6,3227.8,1.04174769]
[1767729742772,3.09705384,3228.9,3228.0,1.04174769]
[1767729743595,3.09705384,3228.9,3228.2,1.04174769]
[1767729743993,3.09696392,3229.0,3228.2,1.04174769]
[1767729744693,6.19392784,3229.0,3228.2,1.04174769]
[1767729745099,6.19392784,3229.0,3227.9,0.17655945]
[1767729745100,0.78383961,3228.9,3227.9,0.17655945]
[1767729745606,0.78383961,3228.9,3227.9,1.21830714]
[1767729745781,6.19425172,3228.8,3227.9,4.31629259]
[1767729746203,6.97793035,3228.8,3227.9,1.21830714]
[1767729746412,0.78367863,3228.7,3227.9,1.21830714]
[1767729746615,0.78351871,3228.6,3227.6,1.04174769]
[1767729746776,0.78351871,3228.6,3227.4,3.09843269]
[1767729746980,0.78351871,3228.6,3227.4,4.14018038]
[1767729747216,0.78351871,3228.5,3227.5,1.45576573]
[1767729747521,0.78351871,3228.5,3227.1,3.09869106]
[1767729747732,0.78351871,3228.5,3227.0,3.09880961]
[1767729748011,0.78336031,3228.3,3227.0,1.04174769]
[1767729748207,0.78336031,3228.1,3227.0,1.04174769]
[1767729750112,6.19578686,3228.0,3227.1,1.04174769]
[1767729750322,6.19578686,3228.0,3227.1,1.37776047]
[1767729750484,0.78290304,3227.9,3227.1,1.04174769]
[1767729752292,1.08868963,3228.6,3227.2,0.9335848]
[1767729752609,0.812,3228.7,3227.2,0.9335848]
[1767729752810,7.00644358,3228.7,3227.2,0.9335848]
[1767729753812,3.90922179,3228.7,3227.2,0.9335848]
[1767729753993,3.09722179,3228.7,3227.2,0.9335848]
[1767729754197,6.19444358,3228.7,3227.4,0.9335848]
[1767729754506,6.19444358,3228.7,3227.3,6.19713072]
[1767729754507,0.812,3228.7,3227.6,0.9335848]
[1767729755217,0.78215461,3228.6,3227.6,0.9335848]
[1767729756206,3.09741365,3228.5,3227.7,0.9335848]
[1767729757329,0.812,3228.7,3227.7,0.9335848]
[1767729757530,3.90925991,3228.7,3227.7,0.9335848]
[1767729757818,3.90925991,3228.7,3227.9,0.9335848]
[1767729758397,3.90925991,3228.7,3228.0,0.9335848]
[1767729758991,0.812,3228.7,3228.0,0.9335848]
[1767729759189,0.78162018,3229.1,3228.0,0.9335848]
[1767729759416,3.09674896,3229.2,3228.0,0.9335848]
[1767729759417,0.812,3229.2,3228.0,0.9335848]
[1767729759711,0.812,3229.2,3227.9,9.2939336]
[1767729759712,0.812,3229.2,3228.2,0.9335848]
[1767729761102,0.812,3229.2,3228.4,0.9335848]
[1767729761103,3.09683812,3229.1,3228.4,0.9335848]
[1767729763624,3.9087748,3229.2,3228.5,0.9335848]
[1767729764536,7.0055496,3229.2,3228.5,0.9335848]
[1767729765227,3.9087748,3229.2,3228.5,0.9335848]
[1767729766842,3.9087748,3229.2,3228.6,0.9335848]
[1767729766843,0.812,3229.2,3228.6,0.9335848]
[1767729767332,0.812,3229.2,3228.7,0.9335848]
[1767729768148,3.09619342,3229.8,3228.7,0.9335848]
[1767729768149,17.2069343,3237.2,3229.8,0.32232618]
[1767729768150,0.1615063,3231.7,3229.8,0.32232618]
[1767729768437,0.00177607,3232.5,3229.8,0.32232618]
[1767729768438,0.00177607,3232.5,3231.0,0.91557173]
[1767729768440,10.08858087,3232.4,3231.0,0.91557173]
[1767729768605,10.08858087,3232.4,3229.2,0.24889048]
[1767729768606,0.09363588,3231.7,3231.4,0.9335848]
[1767729768811,3.90115632,3232.4,3229.2,0.61506536]
[1767729768812,0.09363588,3230.6,3230.4,0.9335848]
[1767729769118,0.09363588,3231.4,3230.6,0.9335848]
[1767729769306,3.09468402,3231.4,3230.8,0.9335848]
[1767729769507,3.09468402,3231.4,3230.0,0.812]
[1767729769508,0.31883199,3231.4,3231.0,0.9335848]
[1767729769718,6.28254646,3231.6,3231.2,0.9335848]
[1767729769947,0.09363588,3231.2,3230.2,0.9335848]
[1767729770125,0.09363588,3230.8,3229.6,3.09635546]
[1767729770329,0.09363588,3230.8,3229.4,0.812]
[1767729770330,0.09363588,3231.0,3229.9,0.9335848]
[1767729771356,0.98257656,3230.6,3229.4,0.812]
[1767729771651,1.07621244,3230.6,3229.3,0.9335848]
[1767729771820,0.09363588,3230.6,3229.3,0.9335848]
[1767729772024,1.07621244,3230.6,3229.3,0.9335848]
[1767729772248,0.72668213,3230.5,3229.3,0.9335848]
[1767729772452,0.09363588,3230.4,3229.3,0.9335848]
[1767729772822,0.09363588,3230.4,3229.4,0.9335848]
[1767729773019,0.811,3230.3,3229.4,0.9335848]
[1767729773425,6.19156708,3230.2,3229.4,0.9335848]
[1767729773622,3.09578354,3230.2,3229.4,0.9335848]
[1767729773819,3.09578354,3230.2,3229.4,1.33660629]
[1767729774225,6.19156708,3230.2,3229.4,1.33660629]
[1767729774458,3.09578354,3230.2,3229.4,0.9335848]
[1767729775916,6.19156708,3230.2,3229.4,0.9335848]
[1767729776541,6.19156708,3230.2,3229.6,0.001]
[1767729777328,9.3809865,3230.2,3229.6,0.001]
[1767729777540,0.98257656,3230.1,3229.6,0.001]
[1767729777750,3.09587938,3230.1,3229.6,0.001]
[1767729778127,6.19183511,3230.1,3229.6,0.001]
[1767729778355,3.09587938,3230.1,3229.6,0.001]
[1767729778653,3.18945786,3230.2,3229.6,0.001]
[1767729778827,6.28527984,3230.2,3229.6,0.001]
[1767729779651,0.98257656,3230.1,3228.7,3.0972064]
[1767729779820,10.40966546,3230.2,3228.7,0.9335848]
[1767729779821,7.17452702,3230.0,3228.7,0.9335848]
[1767729780449,3.09597523,3230.0,3228.7,0.9335848]
[1767729781024,3.18944511,3230.2,3228.7,0.9335848]
[1767729781025,0.811,3230.2,3228.7,0.9335848]
[1767729781424,3.9066877,3230.3,3228.7,0.9335848]
[1767729781724,3.9066877,3230.3,3228.9,1.01622385]
[1767729781926,0.09363588,3230.4,3229.1,1.01622385]
[1767729782133,0.09363588,3230.8,3229.3,1.01622385]
[1767729782134,3.18885001,3230.8,3229.3,1.01622385]
[1767729782333,3.18872747,3231.0,3229.3,1.01622385]
[1767729782334,0.90463588,3231.0,3229.3,1.01622385]
[1767729782643,0.09363588,3231.0,3229.3,1.01622385]
[1767729782844,3.18865594,3231.0,3229.5,0.9442101]
[1767729783341,6.283676,3231.0,3229.5,0.9442101]
[1767729783724,1.05969775,3230.8,3229.5,0.9442101]
[1767729784049,6.28424472,3230.7,3229.5,0.9442101]
[1767729784235,9.37954914,3230.7,3229.5,0.9442101]
[1767729784544,1.8455611,3230.6,3229.5,0.9442101]
[1767729784748,0.09363588,3230.5,3229.5,0.9442101]
[1767729784952,1.05969775,3230.5,3229.1,4.85201643]
[1767729785158,0.09363588,3230.3,3229.1,1.7552101]
[1767729785320,1.05969775,3230.3,3229.1,0.79491016]
[1767729785520,1.05969775,3230.3,3228.6,0.9442101]
[1767729785761,1.05969775,3230.3,3228.9,4.04121233]
[1767729786327,6.19156708,3230.2,3229.0,3.09691855]
[1767729786620,3.09578354,3230.2,3229.1,1.7552101]
[1767729786820,6.19156708,3230.2,3229.1,1.7552101]
[1767729787028,10.25341249,3230.2,3229.2,0.17552101]
[1767729787655,10.25341249,3230.2,3229.1,0.811]
[1767729788981,3.09530442,3230.7,3229.2,0.9442101]
[1767729789127,9.28591326,3230.7,3229.2,0.9442101]
[1767729789333,0.96606187,3230.6,3229.3,0.811]
[1767729789525,1.05969775,3230.6,3229.3,0.811]
[1767729789770,2.4131487,3230.6,3229.4,0.17552101]
[1767729789924,1.05969775,3230.3,3229.2,0.9442101]
[1767729790129,1.05969775,3230.3,3228.8,0.9442101]
[1767729790357,1.05969775,3230.3,3228.8,1.7552101]
[1767729790358,1.05969775,3230.1,3228.8,1.7552101]
[1767729790556,9.28792569,3230.0,3228.9,0.17552101]
[1767729791465,10.25398756,3230.0,3228.9,0.17552101]
[1767729791641,7.15801233,3230.0,3228.9,0.17552101]
[1767729791835,6.19195046,3230.0,3228.9,0.17552101]
[1767729792041,6.19195046,3230.0,3229.0,0.9442101]
[1767729792349,6.19195046,3230.0,3229.1,0.4216683]
[1767729792539,6.19195046,3230.0,3229.0,0.9442101]
[1767729794831,6.19195046,3230.0,3228.9,0.17552101]
[1767729794832,9.28792569,3230.0,3228.9,0.17552101]
[1767729795157,0.96606187,3229.9,3228.6,1.7552101]
[1767729795563,6.19233388,3229.8,3228.6,4.85246048]
[1767729795731,9.28850082,3229.8,3228.6,1.7552101]
[1767729796327,9.28850082,3229.8,3228.6,4.85251058]
[1767729796559,9.28850082,3229.8,3228.7,0.48525106]
[1767729797058,6.19233388,3229.8,3228.7,0.48525106]
[1767729797528,6.19233388,3229.8,3228.6,1.7552101]
[1767729797730,6.19233388,3229.8,3228.6,4.8524723]
[1767729798658,6.19233388,3229.8,3228.7,0.9442101]
[1767729799761,6.19195046,3230.0,3228.8,0.9442101]
[1767729799954,9.28794945,3230.0,3228.8,0.9442101]
[1767729800154,9.28794945,3230.0,3228.9,1.34834837]
[1767729801164,10.25401132,3230.0,3228.9,1.34834837]
[1767729801464,0.96606187,3229.9,3228.6,1.7552101]
[1767729801658,0.96606187,3229.9,3228.6,0.9442101]
[1767729801861,10.25456269,3229.8,3228.7,0.811]
[1767729802644,10.25456269,3229.8,3228.6,0.9442101]
[1767729802645,0.96606187,3229.7,3228.6,0.811]
[1767729802974,1.05969775,3229.5,3228.2,0.811]
[1767729803175,0.96606187,3229.3,3228.2,0.811]
[1767729803339,0.96606187,3229.3,3228.2,4.8528529]
[1767729803934,0.09363588,3229.5,3228.3,0.9442101]
[1767729804142,0.09363588,3229.5,3228.2,7.0063443]
[1767729804143,9.28907604,3229.6,3228.5,0.9442101]
[1767729804348,0.96606187,3229.5,3228.4,0.79505544]
[1767729804557,0.96606187,3229.5,3228.1,0.9442101]
[1767729804766,0.96606187,3229.5,3228.1,1.7552101]
[1767729804967,1.05969775,3229.5,3229.0,0.001]
[1767729805149,1.05969775,3229.5,3228.1,0.811]
[1767729805354,0.96606187,3229.3,3228.1,0.811]
[1767729805805,0.96606187,3229.3,3228.1,1.7552101]
[1767729806073,6.19348444,3229.2,3228.1,1.7552101]
[1767729806270,7.15954631,3229.2,3228.1,1.7552101]
[1767729806771,7.15954631,3229.2,3228.1,4.85300326]
[1767729806977,7.15954631,3229.2,3228.2,0.48540033]
[1767729807156,6.19348444,3229.2,3228.2,1.42961043]
[1767729807353,3.09674222,3229.2,3228.3,0.9442101]
[1767729807574,6.19348444,3229.2,3228.3,0.9442101]
[1767729808445,3.09657784,3229.4,3228.3,0.9442101]
[1767729808446,6.19312828,3229.4,3228.3,0.9442101]
[1767729808646,11.06215059,3229.4,3228.3,0.9442101]
[1767729808846,11.06215059,3229.4,3228.1,0.811]
[1767729808847,0.96606187,3229.3,3228.1,0.811]
[1767729809461,10.09608872,3229.4,3227.4,3.09844091]
[1767729809462,0.96606187,3228.9,3227.4,3.09844091]
[1767729809667,0.09363588,3229.0,3226.5,0.001]
[1767729809668,0.96606187,3228.7,3227.3,0.9442101]
[1767729810156,0.96606187,3228.7,3227.1,0.811]
[1767729810482,7.16069731,3228.6,3227.3,0.9442101]
[1767729810675,6.19463544,3228.6,3227.5,0.9442101]
[1767729810865,6.19463544,3228.6,3227.6,1.34847804]
[1767729811689,6.19463544,3228.6,3227.6,0.40426794]
[1767729811883,6.19463544,3228.6,3227.3,4.05955819]
[1767729812182,0.95933077,3228.5,3227.3,4.05958044]
[1767729812788,6.1950192,3228.4,3227.3,4.05958044]
[1767729812988,0.95933077,3228.3,3227.3,3.09854291]
[1767729813783,6.1950192,3228.4,3227.4,0.96103753]
[1767729813986,7.15434997,3228.4,3227.5,0.71581458]
[1767729814183,7.15434997,3228.4,3227.3,3.09854291]
[1767729816164,7.15434997,3228.4,3227.2,3.09866137]
[1767729816366,0.95933077,3228.3,3227.1,3.9097323]
[1767729816582,0.95933077,3228.3,3227.0,0.96103753]
[1767729816778,0.95933077,3228.3,3227.0,1.77203753]
[1767729817073,0.95933077,3228.3,3227.1,0.17720375]
[1767729817769,0.95933077,3228.3,3227.1,3.27596114]
[1767729817972,0.95933077,3228.3,3227.1,0.17720375]
[1767729818185,0.95933077,3228.1,3227.6,0.001]
[1767729818860,0.95933077,3228.0,3227.6,0.001]
[1767729819784,0.95933077,3228.0,3226.7,3.09908929]
[1767729819973,0.95933077,3228.0,3226.6,3.09919404]
[1767729820157,0.95933077,3227.8,3226.5,4.06129791]
[1767729820357,0.95933077,3227.7,3226.6,0.48732979]
[1767729820855,0.95933077,3227.4,3226.5,0.001]
[1767729822470,0.95933077,3227.2,3226.5,0.001]
[1767729824200,0.95933077,3227.0,3226.5,0.001]
[1767729824796,6.1978989,3226.9,3226.5,0.001]
[1767729825182,3.09894945,3226.9,3226.5,0.001]
[1767729825380,6.1978989,3226.9,3226.5,0.001]
[1767729825812,6.1875529,3226.9,3226.5,0.001]
[1767729826011,3.08860345,3226.9,3226.5,0.001]
[1767729827210,0.95933077,3226.8,3225.7,0.96103753]
[1767729827778,0.95933077,3226.8,3225.8,3.09999355]
[1767729828091,3.90060345,3226.9,3226.0,0.96103753]
[1767729828403,3.08860345,3226.9,3226.0,0.96103753]
[1767729828596,3.08860345,3226.9,3226.1,0.71608577]
[1767729829203,4.05811345,3227.1,3226.1,0.71608577]
[1767729829204,6.19772138,3227.0,3226.1,0.71608577]
[1767729829508,6.19772138,3227.0,3226.0,4.06078548]
[1767729829716,6.19772138,3227.0,3226.0,0.96103753]
[1767729830207,10.25592011,3227.0,3226.0,0.96103753]
[1767729830505,7.15705215,3227.0,3226.0,0.96103753]
[1767729830901,7.15705215,3227.0,3226.1,0.40609444]
[1767729831839,7.15705215,3227.0,3225.9,3.09990691]
[1767729831840,0.95933077,3226.9,3225.9,0.96103753]
[1767729832109,0.95933077,3226.9,3225.9,4.06093675]
[1767729832487,0.95933077,3226.9,3225.9,0.96103753]
[1767729833698,0.812,3227.2,3226.1,0.96103753]
[1767729833880,0.812,3227.2,3226.3,0.96103753]
[1767729834517,0.812,3227.3,3226.3,0.96103753]
[1767729834687,1.77133077,3227.3,3226.3,0.96103753]
[1767729835319,1.77133077,3227.3,3226.2,0.71606655]
[1767729835526,0.95933077,3227.2,3226.2,0.71606655]
[1767729835685,0.812,3227.3,3225.6,0.96103753]
[1767729835686,0.95933077,3226.8,3225.6,0.96103753]
[1767729836722,0.95933077,3226.8,3226.3,0.001]
[1767729838020,0.95933077,3226.8,3225.3,0.96103753]
[1767729838021,0.95933077,3226.6,3225.3,0.96103753]
[1767729838620,0.95933077,3226.6,3224.9,0.812]
[1767729838787,0.95933077,3226.4,3225.0,0.39128741]
[1767729839729,0.95933077,3226.4,3225.1,3.10062502]
[1767729840117,0.95933077,3226.2,3225.0,3.49201958]
[1767729840338,0.95933077,3226.2,3225.0,0.39128741]
[1767729840999,0.95933077,3226.2,3225.0,3.4919751]
[1767729841334,0.95933077,3226.2,3225.1,0.43039751]
[1767729842241,7.16343241,3226.1,3225.1,3.53103739]
[1767729842532,7.16343241,3226.1,3225.1,0.43039751]
[1767729842833,0.96399657,3226.0,3225.1,3.53100965]
[1767729843040,0.96399657,3226.0,3225.1,0.43039751]
[1767729843358,0.96399657,3226.0,3224.9,0.812]
[1767729843824,6.19943584,3226.1,3225.0,1.02105839]
[1767729844126,0.94029248,3226.0,3225.0,1.02105839]
[1767729844434,0.94029248,3225.8,3225.0,3.10077519]
[1767729847026,0.94029248,3225.8,3224.8,3.10094247]
[1767729847233,3.36063588,3227.0,3224.8,3.10094247]
[1767729847234,0.94029248,3226.4,3225.0,0.96179344]
[1767729847437,0.94029248,3226.4,3225.2,0.96179344]
[1767729847638,0.09363588,3227.3,3225.4,0.96179344]
[1767729847639,4.0391459,3227.0,3225.4,0.96179344]
[1767729847838,7.13799932,3227.0,3225.6,0.96179344]
[1767729848040,0.94029248,3226.9,3225.7,1.17327408]
[1767729849437,0.002,3226.6,3225.8,3.1000062]
[1767729850135,0.002,3226.6,3225.9,0.96179344]
[1767729850342,0.002,3226.9,3225.9,0.96179344]
[1767729850514,3.09818136,3227.7,3226.5,0.96179344]
[1767729850733,7.1366552,3227.7,3226.5,0.96179344]
[1767729851350,7.1366552,3227.7,3226.6,3.09923758]
[1767729852242,4.03847384,3227.7,3226.6,3.09923758]
[1767729852533,0.002,3228.0,3226.7,0.96179344]
[1767729852735,3.0979894,3227.9,3226.8,1.6778203]
[1767729853240,0.002,3228.0,3227.0,3.09885342]
[1767729853608,0.002,3228.0,3227.1,0.96179344]
[1767729856640,0.002,3228.0,3226.9,0.812]
[1767729856814,0.002,3228.0,3226.9,3.91093951]
[1767729857014,0.002,3228.0,3227.0,0.39109395]
[1767729857445,0.002,3228.0,3226.9,4.87267595]
[1767729857614,0.002,3228.0,3227.0,0.96179344]
[1767729858379,0.002,3228.2,3226.9,10.10878141]
[1767729858526,0.002,3228.2,3227.0,0.96179344]
[1767729859044,0.002,3228.3,3227.6,0.96179344]
[1767729859216,0.002,3228.3,3227.6,1.77379344]
[1767729859417,0.002,3228.3,3227.8,3.09808538]
[1767729863147,0.002,3228.3,3227.9,0.96179344]
[1767729863348,6.19427818,3228.8,3227.9,0.96179344]
[1767729863549,6.19427818,3228.8,3227.8,3.09808538]
[1767729863717,3.09712586,3228.8,3227.9,0.96179344]
[1767729863917,0.09363588,3229.2,3228.1,0.96179344]
[1767729864120,3.09664633,3229.3,3228.3,0.96179344]
[1767729864320,6.19329266,3229.3,3228.3,0.96179344]
[1767729867950,6.19310088,3229.4,3228.3,0.96179344]
[1767729868153,0.70987368,3229.3,3228.3,0.96179344]
[1767729869620,0.94029248,3229.2,3228.1,0.812]
[1767729870325,6.19367624,3229.1,3228.1,0.812]
[1767729871418,7.19074037,3229.1,3228.1,0.812]
[1767729871622,0.99706413,3228.9,3228.0,0.812]
[1767729871820,0.99706413,3228.9,3227.8,0.99147363]
[1767729872322,3.09712586,3228.8,3227.9,0.99147363]
[1767729872556,3.09706337,3228.9,3227.9,0.99147363]
[1767729872753,0.70987368,3229.3,3228.0,0.03097893]
[1767729872954,6.19310088,3229.4,3228.1,0.99147363]
[1767729873121,0.99706413,3229.3,3228.1,0.99147363]
[1767729875032,0.99706413,3229.1,3228.1,0.99147363]
[1767729875433,0.99706413,3229.1,3228.0,0.812]
[1767729876452,0.99706413,3229.1,3228.1,3.0987836]
[1767729876751,0.002,3229.0,3228.1,3.79965999]
[1767729877746,0.002,3229.0,3228.2,0.99147363]
[1767729880068,0.002,3229.0,3228.3,4.08907918]
[1767729880236,0.002,3229.0,3228.4,0.99147363]
[1767729880640,0.002,3229.0,3228.6,0.99147363]
[1767729880905,0.002,3229.3,3228.9,0.99147363]
[1767729881771,0.002,3229.3,3228.4,0.99147363]
[1767729881772,3.09868821,3229.3,3228.4,0.99147363]
[1767729881970,7.19244055,3229.3,3228.5,0.812]
[1767729883278,7.14244055,3229.3,3228.5,0.812]
[1767729884054,0.99706413,3229.2,3228.5,0.812]
[1767729884476,4.09390225,3229.1,3228.5,0.812]
[1767729884678,0.99706413,3229.0,3228.5,0.812]
[1767729886682,0.99706413,3229.3,3228.5,0.812]
[1767729887070,0.99706413,3229.3,3228.2,0.99147363]
[1767729887262,0.99706413,3229.3,3228.2,1.40049833]
[1767729887460,0.99706413,3229.3,3228.4,3.0974952]
[1767729887979,0.814,3229.6,3228.5,0.99147363]
[1767729888161,0.28950643,3229.5,3228.5,4.08879933]
[1767729888346,1.81106413,3229.6,3228.5,1.40035356]
[1767729888549,0.28950646,3229.5,3228.5,1.40035356]
[1767729888774,6.19310088,3229.4,3228.5,0.99147363]
[1767729889280,3.09835868,3229.6,3228.6,0.99147363]
[1767729889451,0.002,3229.6,3228.6,0.99147363]
[1767729889647,0.002,3228.7,3228.6,0.99147363]
[1767729889880,3.09838013,3229.6,3228.7,0.99147363]
[1767729890046,0.002,3229.0,3228.8,1.80247363]
[1767729890244,3.09838013,3229.6,3228.8,1.80247363]
[1767729890449,3.09838013,3229.6,3228.9,0.99147363]
[1767729890648,0.002,3229.6,3228.9,0.99147363]
[1767729890957,0.002,3229.6,3229.0,0.99147363]
[1767729892887,0.002,3229.6,3229.1,0.99147363]
[1767729893393,0.002,3230.3,3229.0,6.19382825]
[1767729893394,0.99706413,3230.1,3229.0,6.19382825]
[1767729893683,3.09578354,3230.2,3229.1,0.99147363]
[1767729894064,6.19156708,3230.2,3229.1,0.99147363]
[1767729894263,6.19156708,3230.2,3229.2,1.71000382]
[1767729894469,3.09578354,3230.2,3229.2,1.71000382]
[1767729894891,0.002,3230.3,3229.4,0.99147363]
[1767729895104,0.25363588,3231.4,3230.2,0.99147363]
[1767729895105,9.28449475,3231.2,3230.2,0.99147363]
[1767729895270,0.99706413,3231.0,3229.4,0.99147363]
[1767729895592,0.92844948,3231.1,3229.3,6.19329266]
[1767729895593,0.99706413,3230.8,3229.5,0.811]
[1767729896892,0.99706413,3230.6,3229.5,0.811]
[1767729897191,0.99706413,3230.6,3229.5,3.90741017]
[1767729898190,0.99706413,3230.6,3229.5,0.811]
[1767729898564,0.99706413,3230.6,3229.2,0.71853019]
[1767729898765,0.99706413,3230.6,3229.5,0.811]
[1767729899098,1.02208536,3231.1,3229.6,0.99147363]
[1767729899099,3.09505664,3231.0,3229.6,0.99147363]
[1767729899272,3.09505664,3231.0,3229.5,0.811]
[1767729899273,10.28219443,3231.0,3229.7,1.80247363]
[1767729899685,1.02821944,3230.9,3229.8,0.18024736]
[1767729899997,2.02528357,3230.9,3229.8,0.18024736]
[1767729900200,2.02528357,3230.9,3229.8,0.99124736]
[1767729900713,0.99706413,3230.8,3229.3,0.99147363]
[1767729900995,9.28591326,3230.7,3229.4,1.80247363]
[1767729901213,9.28591326,3230.7,3229.5,0.99147363]
[1767729901569,6.19060884,3230.7,3229.5,0.99147363]
[1767729901988,9.28591326,3230.7,3229.5,0.99147363]
[1767729902168,9.28591326,3230.7,3229.7,0.97470341]
[1767729902169,10.31732653,3230.7,3229.7,0.97470341]
[1767729902370,0.002,3230.6,3229.7,0.97470341]
[1767729902974,0.98899157,3230.6,3229.3,0.97470341]
[1767729903173,0.98899157,3230.6,3229.3,1.78570341]
[1767729903174,9.28648815,3230.5,3229.3,1.78570341]
[1767729903883,9.28648815,3230.5,3229.3,4.88234207]
[1767729904084,1.02754797,3230.4,3229.3,5.68025954]
[1767729904295,1.02754797,3230.4,3229.3,2.58362088]
[1767729904468,1.94918643,3230.4,3229.3,0.97470341]
[1767729904673,0.92163846,3230.3,3229.0,1.82739778]
[1767729904880,0.92163846,3230.3,3229.1,1.01639778]
[1767729905092,6.19156708,3230.2,3229.1,1.01639778]
[1767729905423,6.19156708,3230.2,3228.8,1.01639778]
[1767729905424,0.92163846,3230.1,3228.8,1.01639778]
[1767729905706,1.0208979,3230.1,3229.1,1.01639778]
[1767729905932,0.92163846,3230.0,3228.7,0.811]
[1767729906204,0.92163846,3230.0,3228.8,1.01639778]
[1767729906372,2.04462716,3230.0,3228.9,0.18273978]
[1767729907189,6.19214216,3229.9,3228.9,0.18273978]
[1767729909505,6.19214216,3229.9,3228.9,0.1812547]
[1767729909803,7.11378062,3229.9,3228.8,1.01639778]
[1767729910005,0.92163846,3229.8,3228.5,4.11371742]
[1767729910213,0.92163846,3229.8,3228.5,0.811]
[1767729910505,12.38428432,3229.9,3228.6,1.01639778]
[1767729910506,1.33059228,3229.7,3228.6,1.01639778]
[1767729910698,6.19214216,3229.9,3228.7,4.11355791]
[1767729911003,6.19214216,3229.9,3228.8,3.09711101]
[1767729911205,6.19214216,3229.9,3228.7,1.01639778]
[1767729911373,3.09607108,3229.9,3228.7,4.11358034]
[1767729911576,8.23660782,3230.0,3228.8,1.01639778]
[1767729911777,1.01527434,3230.4,3229.0,1.01639778]
[1767729912021,3.0956877,3230.3,3229.2,1.01639778]
[1767729912985,3.09549605,3230.5,3229.2,1.01639778]
[1767729913410,0.002,3230.6,3229.2,1.01639778]
[1767729913578,0.002,3230.6,3229.4,1.01639778]
[1767729913774,0.002,3230.6,3229.6,1.01639778]
[1767729914080,0.002,3230.6,3229.7,1.01639778]
[1767729915611,0.002,3230.6,3229.9,1.01639778]
[1767729916176,0.92363846,3230.6,3229.5,3.81736245]
[1767729916410,0.92363846,3230.6,3229.5,1.01639778]
[1767729916578,0.002,3230.6,3229.5,1.01639778]
[1767729917622,0.002,3230.6,3229.6,3.09635868]
[1767729918297,0.002,3230.6,3229.5,4.11284831]
[1767729919808,0.002,3230.6,3229.5,7.20930286]
[1767729920009,0.002,3230.6,3229.6,0.72093029]
[1767729920842,0.002,3230.6,3229.6,1.73732807]
[1767729921046,0.002,3230.6,3229.7,1.01639778]
[1767729921937,0.002,3230.6,3229.7,4.11258576]
[1767729922142,0.002,3230.6,3229.8,1.01639778]
[1767729922342,0.62124172,3230.6,3229.8,1.01639778]
[1767729922859,0.002,3230.6,3229.8,1.01639778]
[1767729924944,0.002,3230.6,3229.8,4.11255934]
[1767729925442,0.002,3230.6,3229.8,1.01639778]
[1767729926850,0.002,3230.3,3229.8,1.01639778]
[1767729927154,0.002,3230.3,3229.8,4.11255945]
[1767729927455,0.002,3230.3,3229.8,1.01639778]
[1767729927958,0.002,3230.3,3229.8,4.11254106]
[1767729928252,0.002,3230.6,3230.3,1.01639778]
[1767729928456,0.002,3230.6,3229.9,0.811]
[1767729928457,2.395e-05,3230.6,3230.0,1.01639778]
[1767729928626,2.395e-05,3230.6,3230.1,6.19175876]
[1767729929839,2.395e-05,3230.6,3230.1,6.21584821]
[1767729930032,2.395e-05,3230.6,3230.2,0.7232246]
[1767729930857,2.395e-05,3230.6,3230.3,3.0956877]
[1767729931357,0.92163846,3231.3,3230.3,7.18628138]
[1767729931564,3.09467489,3231.4,3230.4,0.99490598]
[1767729931851,7.00014718,3231.5,3230.4,0.99490598]
[1767729932052,3.90557359,3231.5,3230.5,1.71353412]
[1767729932435,7.00014718,3231.5,3230.5,1.71353412]
[1767729932636,3.90557359,3231.5,3230.5,1.71353412]
[1767729932853,7.00014718,3231.5,3230.5,1.71353412]
[1767729933055,7.00014718,3231.5,3230.5,4.80899495]
[1767729933352,6.8891619,3231.5,3230.5,4.80899495]
[1767729933558,3.09457359,3231.5,3230.6,0.99490598]
[1767729933760,6.18914718,3231.5,3230.6,0.99490598]
[1767729934134,3.09457359,3231.5,3230.6,0.99490598]
[1767729934638,6.18914718,3231.5,3230.6,0.99490598]
[1767729935043,6.18869324,3231.7,3230.7,0.99490598]
[1767729935261,0.71245436,3231.6,3230.7,0.99490598]
[1767729937058,6.18869324,3231.7,3230.5,3.81410689]
[1767729937059,3.09434662,3231.7,3230.9,0.99490598]
[1767729937365,3.09427029,3231.8,3231.0,0.99490598]
[1767729937534,3.09619598,3231.9,3231.0,0.99490598]
[1767729937734,0.002,3231.9,3231.0,0.99490598]
[1767729937929,0.002,3231.9,3231.2,0.99490598]
[1767729938335,3.09619273,3231.9,3231.2,0.99490598]
[1767729938563,0.002,3231.9,3231.2,0.99490598]
[1767729938758,3.09616316,3231.9,3231.2,0.99490598]